[Event "GrandPrix_29.05"]
[Site "Chess.com"]
[Date "2020.05.29"]
[Round "4"]
[White "DarkAlekhine"]
[Black "LorisinoC"]
[Result "0-1"]
[WhiteElo "1994"]
[BlackElo "2248"]
[TimeControl "600+2"]
[EndTime "10:58:00 PDT"]
[Termination "LorisinoC won by resignation"]

1. Nf3 {[%clk 0:10:01.9]} 1... d5 {[%clk 0:09:59.9]} 2. g3 {[%clk 0:10:02.4]}
2... Nf6 {[%clk 0:09:55.3]} 3. Bg2 {[%clk 0:10:03.2]} 3... c6 {[%clk 0:09:54.5]}
4. O-O {[%clk 0:10:04.3]} 4... Bg4 {[%clk 0:09:53.4]} 5. d3 {[%clk 0:10:04.9]}
5... e6 {[%clk 0:09:46.7]} 6. h3 {[%clk 0:10:04.5]} 6... Bh5 {[%clk 0:09:44.8]}
7. Nbd2 {[%clk 0:10:04.8]} 7... Nbd7 {[%clk 0:09:39.1]} 8. e4 {[%clk 0:10:04.8]}
8... Bd6 {[%clk 0:08:44.8]} 9. Qe1 {[%clk 0:10:02.5]} 9... Qc7 {[%clk
0:08:39.6]} 10. b3 {[%clk 0:08:41]} 10... O-O {[%clk 0:08:29.4]} 11. Bb2 {[%clk
0:08:41.6]} 11... e5 {[%clk 0:08:23.1]} 12. Nh4 {[%clk 0:08:28.5]} 12... Rfe8
{[%clk 0:08:07.3]} 13. Kh1 {[%clk 0:08:08.5]} 13... Rac8 {[%clk 0:07:47.3]} 14.
Nf5 {[%clk 0:07:26.4]} 14... Bf8 {[%clk 0:07:25.9]} 15. f4 {[%clk 0:07:14.4]}
15... dxe4 {[%clk 0:06:34.4]} 16. dxe4 {[%clk 0:07:12.1]} 16... a5 {[%clk
0:06:28.2]} 17. Nc4 {[%clk 0:04:39.4]} 17... exf4 {[%clk 0:06:15.1]} 18. gxf4
{[%clk 0:04:39]} 18... Bg6 {[%clk 0:06:08.1]} 19. Ne5 {[%clk 0:04:18.1]} 19...
Nxe5 {[%clk 0:05:17.7]} 20. Bxe5 {[%clk 0:04:04.1]} 20... Rxe5 {[%clk
0:05:18.3]} 21. fxe5 {[%clk 0:04:06]} 21... Qxe5 {[%clk 0:05:16.5]} 22. Qg3
{[%clk 0:04:01.3]} 22... Qxg3 {[%clk 0:05:08.6]} 23. Nxg3 {[%clk 0:04:03.2]}
23... Re8 {[%clk 0:05:07.7]} 24. Rad1 {[%clk 0:03:29.3]} 24... Bc5 {[%clk
0:04:42.8]} 25. c3 {[%clk 0:02:26.9]} 25... h5 {[%clk 0:04:22.1]} 26. Rxf6
{[%clk 0:01:38.4]} 26... gxf6 {[%clk 0:04:18.5]} 27. h4 {[%clk 0:01:39.7]} 27...
Bf2 {[%clk 0:04:08.7]} 28. Kh2 {[%clk 0:01:39.5]} 28... Bxg3+ {[%clk 0:03:58.7]}
29. Kxg3 {[%clk 0:01:39.3]} 29... Bxe4 {[%clk 0:03:57.8]} 30. Bh3 {[%clk
0:01:01]} 30... Kh7 {[%clk 0:03:46.1]} 31. Rd7 {[%clk 0:00:59.1]} 31... Kg6
{[%clk 0:03:32]} 32. Rxb7 {[%clk 0:00:59.1]} 32... Bb1 {[%clk 0:03:16.6]} 33.
Kf4 {[%clk 0:00:30.6]} 33... Re4+ {[%clk 0:03:11.3]} 34. Kf3 {[%clk 0:00:31.6]}
34... Rxh4 {[%clk 0:03:08.1]} 35. Bd7 {[%clk 0:00:32.2]} 35... Be4+ {[%clk
0:02:51.2]} 36. Kg3 {[%clk 0:00:32.8]} 36... Rh1 {[%clk 0:02:35.8]} 37. Kf4
{[%clk 0:00:22.7]} 37... f5 {[%clk 0:02:33.7]} 38. Be8 {[%clk 0:00:22.7]} 38...
Bd5 {[%clk 0:02:23]} 39. c4 {[%clk 0:00:23.4]} 39... Rf1+ {[%clk 0:02:11.9]} 40.
Kg3 {[%clk 0:00:23.6]} 40... f4+ {[%clk 0:02:00.1]} 0-1

[Event "GrandPrix_29.05"]
[Site "Chess.com"]
[Date "2020.05.29"]
[Round "4"]
[White "Novoselski"]
[Black "Ave_Mariia"]
[Result "1-0"]
[WhiteElo "2364"]
[BlackElo "2171"]
[TimeControl "600+2"]
[EndTime "10:58:09 PDT"]
[Termination "Novoselski won by resignation"]

1. Nf3 {[%clk 0:10:01.9]} 1... Nf6 {[%clk 0:09:58.9]} 2. c4 {[%clk 0:10:01.5]}
2... e6 {[%clk 0:09:51.5]} 3. g3 {[%clk 0:10:00.4]} 3... d5 {[%clk 0:09:52.6]}
4. Bg2 {[%clk 0:10:01]} 4... Bd6 {[%clk 0:09:35.5]} 5. O-O {[%clk 0:09:59.4]}
5... O-O {[%clk 0:09:36]} 6. b3 {[%clk 0:09:58.7]} 6... c6 {[%clk 0:09:33.4]} 7.
Bb2 {[%clk 0:09:59]} 7... Nbd7 {[%clk 0:09:34.2]} 8. e3 {[%clk 0:09:50.7]} 8...
b6 {[%clk 0:09:15]} 9. Qe2 {[%clk 0:09:48.4]} 9... Bb7 {[%clk 0:09:15.4]} 10.
Rd1 {[%clk 0:09:47.1]} 10... Qe7 {[%clk 0:09:08.6]} 11. d3 {[%clk 0:09:44.6]}
11... e5 {[%clk 0:08:40.1]} 12. e4 {[%clk 0:09:29.3]} 12... Rfe8 {[%clk
0:07:39.9]} 13. Nbd2 {[%clk 0:09:02.7]} 13... Nc5 {[%clk 0:07:17.7]} 14. Nh4
{[%clk 0:08:49.8]} 14... g6 {[%clk 0:06:28.3]} 15. Nf1 {[%clk 0:08:25.4]} 15...
dxe4 {[%clk 0:06:14.9]} 16. dxe4 {[%clk 0:08:24.8]} 16... Rad8 {[%clk
0:06:15.2]} 17. h3 {[%clk 0:08:12.6]} 17... Ne6 {[%clk 0:05:40.1]} 18. Ne3
{[%clk 0:07:44.3]} 18... Nd4 {[%clk 0:05:33]} 19. Qf1 {[%clk 0:07:35.1]} 19...
Bc5 {[%clk 0:04:57.8]} 20. Rd3 {[%clk 0:07:22.2]} 20... Rd7 {[%clk 0:04:49.9]}
21. Rad1 {[%clk 0:07:20.2]} 21... Red8 {[%clk 0:04:50.6]} 22. Kh2 {[%clk
0:07:18.6]} 22... b5 {[%clk 0:04:35.4]} 23. Bc3 {[%clk 0:06:51.5]} 23... b4
{[%clk 0:04:14.8]} 24. Bb2 {[%clk 0:06:48.4]} 24... Bb6 {[%clk 0:04:14]} 25.
R1d2 {[%clk 0:06:43.1]} 25... c5 {[%clk 0:04:07.9]} 26. Nd5 {[%clk 0:06:38.8]}
26... Nxd5 {[%clk 0:03:46.9]} 27. exd5 {[%clk 0:06:38.3]} 27... Bc7 {[%clk
0:03:44.2]} 28. Re3 {[%clk 0:06:32]} 28... Qf6 {[%clk 0:03:25.3]} 29. Nf3 {[%clk
0:05:58.3]} 29... Nf5 {[%clk 0:03:04.4]} 30. Re1 {[%clk 0:05:53]} 30... Re7
{[%clk 0:02:50.2]} 31. Rde2 {[%clk 0:05:45.9]} 31... Rde8 {[%clk 0:02:50.9]} 32.
Nd2 {[%clk 0:05:43.6]} 32... Nd4 {[%clk 0:02:34.7]} 33. Ne4 {[%clk 0:05:42.6]}
33... Qb6 {[%clk 0:02:34.5]} 34. Bxd4 {[%clk 0:05:23.7]} 34... exd4 {[%clk
0:02:35]} 35. d6 {[%clk 0:05:14.8]} 35... Bxd6 {[%clk 0:02:19.5]} 36. Nf6+
{[%clk 0:05:13.6]} 36... Kf8 {[%clk 0:02:07.1]} 37. Nd7+ {[%clk 0:05:03.4]}
37... Rxd7 {[%clk 0:02:03.3]} 38. Rxe8+ {[%clk 0:05:05.3]} 38... Kg7 {[%clk
0:02:04.5]} 39. Bxb7 {[%clk 0:05:04.5]} 39... Qxb7 {[%clk 0:02:04]} 40. Qd3
{[%clk 0:05:04]} 40... f6 {[%clk 0:01:32.4]} 41. R8e4 {[%clk 0:04:36.4]} 41...
Be5 {[%clk 0:01:25.8]} 42. f4 {[%clk 0:04:33.9]} 42... Bd6 {[%clk 0:01:26.3]}
43. h4 {[%clk 0:04:32]} 43... Qc7 {[%clk 0:01:10.5]} 44. Kg2 {[%clk 0:04:19]}
44... Rf7 {[%clk 0:01:03.1]} 45. Qf3 {[%clk 0:04:12.7]} 45... h5 {[%clk
0:00:27.4]} 46. f5 {[%clk 0:04:00.3]} 46... Kh6 {[%clk 0:00:24.9]} 47. fxg6
{[%clk 0:03:56.9]} 47... Kxg6 {[%clk 0:00:25.7]} 48. Re6 {[%clk 0:03:54.2]}
48... Qd7 {[%clk 0:00:18.5]} 49. Qe4+ {[%clk 0:03:48.2]} 49... Kg7 {[%clk
0:00:18.2]} 50. Qf5 {[%clk 0:03:46.4]} 50... d3 {[%clk 0:00:11.9]} 51. Qxd3
{[%clk 0:03:41.8]} 51... Qb7+ {[%clk 0:00:09.6]} 52. Qf3 {[%clk 0:03:39.2]}
52... Qc7 {[%clk 0:00:08.6]} 53. R1e4 {[%clk 0:03:29.8]} 53... Be5 {[%clk
0:00:07.4]} 54. Qxh5 {[%clk 0:03:26.5]} 54... Qd7 {[%clk 0:00:05.9]} 55. Qg4+
{[%clk 0:03:21.7]} 55... Kh7 {[%clk 0:00:06.4]} 56. Kh3 {[%clk 0:03:15.1]} 56...
f5 {[%clk 0:00:06.2]} 57. Qh5+ {[%clk 0:03:13.8]} 1-0

[Event "GrandPrix_29.05"]
[Site "Chess.com"]
[Date "2020.05.29"]
[Round "4"]
[White "ulkaf961"]
[Black "kosmeg"]
[Result "1-0"]
[WhiteElo "2017"]
[BlackElo "2026"]
[TimeControl "600+2"]
[EndTime "10:58:11 PDT"]
[Termination "ulkaf961 won on time"]

1. e4 {[%clk 0:10:01.9]} 1... c5 {[%clk 0:09:57.3]} 2. Nf3 {[%clk 0:10:02.4]}
2... d6 {[%clk 0:09:58.3]} 3. Bb5+ {[%clk 0:10:02.5]} 3... Nd7 {[%clk
0:09:58.9]} 4. O-O {[%clk 0:09:34.1]} 4... a6 {[%clk 0:09:54.8]} 5. Bd3 {[%clk
0:09:11.3]} 5... b5 {[%clk 0:09:49.1]} 6. c3 {[%clk 0:09:11.3]} 6... Bb7 {[%clk
0:09:46.5]} 7. Qe2 {[%clk 0:09:10.6]} 7... Ngf6 {[%clk 0:09:43.8]} 8. a4 {[%clk
0:08:53]} 8... c4 {[%clk 0:09:36.8]} 9. Bc2 {[%clk 0:08:52.9]} 9... e5 {[%clk
0:09:10.7]} 10. axb5 {[%clk 0:08:12.9]} 10... axb5 {[%clk 0:09:09.9]} 11. Rxa8
{[%clk 0:08:12.7]} 11... Qxa8 {[%clk 0:09:07.1]} 12. Na3 {[%clk 0:07:40.8]}
12... Bc6 {[%clk 0:08:42.6]} 13. d3 {[%clk 0:07:39.8]} 13... cxd3 {[%clk
0:07:17.2]} 14. Bxd3 {[%clk 0:07:39.5]} 14... Be7 {[%clk 0:06:54.2]} 15. Nxb5
{[%clk 0:07:06.6]} 15... O-O {[%clk 0:06:55.2]} 16. Nh4 {[%clk 0:06:19.6]} 16...
g6 {[%clk 0:05:25.3]} 17. Bg5 {[%clk 0:06:13.9]} 17... Rb8 {[%clk 0:05:10.6]}
18. c4 {[%clk 0:05:14.2]} 18... Nc5 {[%clk 0:04:46.3]} 19. Bc2 {[%clk
0:04:35.5]} 19... Bxe4 {[%clk 0:04:10.8]} 20. b4 {[%clk 0:03:41.4]} 20... h6
{[%clk 0:02:44.1]} 21. Bxf6 {[%clk 0:02:38]} 21... Bxf6 {[%clk 0:02:46]} 22.
bxc5 {[%clk 0:02:38.8]} 22... Bxc2 {[%clk 0:02:44.9]} 23. Qxc2 {[%clk
0:02:39.1]} 23... Bxh4 {[%clk 0:02:46.2]} 24. cxd6 {[%clk 0:02:39.6]} 24... Qc6
{[%clk 0:02:40.3]} 25. Qd3 {[%clk 0:02:15.4]} 25... Rc8 {[%clk 0:02:04.1]} 26.
Qh3 {[%clk 0:01:05.1]} 26... Qxc4 {[%clk 0:00:51.1]} 27. Na3 {[%clk 0:01:05.2]}
1-0

[Event "GrandPrix_29.05"]
[Site "Chess.com"]
[Date "2020.05.29"]
[Round "4"]
[White "Mesropov_Konstantin"]
[Black "Sunnika"]
[Result "1-0"]
[WhiteElo "2048"]
[BlackElo "2089"]
[TimeControl "600+2"]
[EndTime "10:58:12 PDT"]
[Termination "Mesropov_Konstantin won by resignation"]

1. c4 {[%clk 0:10:01.9]} 1... c6 {[%clk 0:09:50.9]} 2. Nf3 {[%clk 0:10:01.4]}
2... d5 {[%clk 0:09:51.7]} 3. e3 {[%clk 0:10:02.5]} 3... Nf6 {[%clk 0:09:51.7]}
4. Nc3 {[%clk 0:10:03.3]} 4... a6 {[%clk 0:09:35]} 5. b3 {[%clk 0:10:03.3]} 5...
Bf5 {[%clk 0:09:32]} 6. Bb2 {[%clk 0:10:03.8]} 6... e6 {[%clk 0:09:31.5]} 7. Be2
{[%clk 0:09:58.6]} 7... h6 {[%clk 0:09:31.7]} 8. O-O {[%clk 0:09:56.3]} 8...
Nbd7 {[%clk 0:09:31.3]} 9. d4 {[%clk 0:08:23.9]} 9... Bd6 {[%clk 0:09:23.6]} 10.
h3 {[%clk 0:08:20.9]} 10... Ne4 {[%clk 0:09:04.9]} 11. Bd3 {[%clk 0:07:57.8]}
11... Qf6 {[%clk 0:08:34.6]} 12. Qc2 {[%clk 0:07:25.5]} 12... Nxc3 {[%clk
0:08:26.7]} 13. Bxf5 {[%clk 0:07:24.4]} 13... Qxf5 {[%clk 0:08:13.9]} 14. Qxc3
{[%clk 0:07:18]} 14... Nf6 {[%clk 0:07:37.1]} 15. Nd2 {[%clk 0:06:56.6]} 15...
O-O {[%clk 0:07:10.3]} 16. c5 {[%clk 0:06:49.7]} 16... Bc7 {[%clk 0:07:06.6]}
17. f4 {[%clk 0:06:47.4]} 17... Ne4 {[%clk 0:06:18.6]} 18. Nxe4 {[%clk
0:06:45.9]} 18... Qxe4 {[%clk 0:06:09]} 19. Rad1 {[%clk 0:06:30.3]} 19... f6
{[%clk 0:06:03.1]} 20. Qd3 {[%clk 0:06:28.6]} 20... Qxd3 {[%clk 0:05:45.1]} 21.
Rxd3 {[%clk 0:06:30.5]} 21... e5 {[%clk 0:05:16.1]} 22. dxe5 {[%clk 0:06:14.1]}
22... fxe5 {[%clk 0:05:14.1]} 23. Bxe5 {[%clk 0:06:12.3]} 23... Bxe5 {[%clk
0:05:12.9]} 24. fxe5 {[%clk 0:06:13.5]} 24... Rae8 {[%clk 0:05:03.7]} 25. Rxf8+
{[%clk 0:04:17.7]} 25... Kxf8 {[%clk 0:05:03]} 26. Kf2 {[%clk 0:04:17.7]} 26...
Rxe5 {[%clk 0:05:02.7]} 27. g4 {[%clk 0:04:16.3]} 27... Re4 {[%clk 0:04:58.1]}
28. Rd4 {[%clk 0:04:08.4]} 28... Ke7 {[%clk 0:04:30]} 29. Kf3 {[%clk 0:03:56.6]}
29... Re5 {[%clk 0:03:08.5]} 30. Rb4 {[%clk 0:03:49.5]} 30... Kd8 {[%clk
0:01:07.3]} 31. Rxb7 {[%clk 0:03:48]} 31... g5 {[%clk 0:00:40.7]} 32. Rb6 {[%clk
0:03:45.4]} 32... Kc7 {[%clk 0:00:38.5]} 33. Rxa6 {[%clk 0:03:45.1]} 33... Kb7
{[%clk 0:00:33.8]} 34. Rb6+ {[%clk 0:03:43.2]} 34... Kc7 {[%clk 0:00:35.2]} 35.
a4 {[%clk 0:03:21.7]} 35... Re8 {[%clk 0:00:16.4]} 36. a5 {[%clk 0:03:19.5]}
36... Ra8 {[%clk 0:00:16.3]} 37. b4 {[%clk 0:03:08.5]} 37... Ra7 {[%clk
0:00:13.1]} 38. e4 {[%clk 0:03:05.3]} 38... d4 {[%clk 0:00:12.2]} 39. Ke2 {[%clk
0:03:04.1]} 39... Ra8 {[%clk 0:00:13.1]} 40. a6 {[%clk 0:03:00.4]} 40... Rd8
{[%clk 0:00:07.9]} 41. Kd3 {[%clk 0:02:55.8]} 41... Rf8 {[%clk 0:00:08.2]} 42.
Rb7+ {[%clk 0:02:45.7]} 42... Kc8 {[%clk 0:00:08.5]} 43. Rh7 {[%clk 0:02:37.4]}
43... Rf3+ {[%clk 0:00:07.8]} 44. Kxd4 {[%clk 0:02:38.1]} 44... Ra3 {[%clk
0:00:08.1]} 45. a7 {[%clk 0:02:35]} 45... Ra4 {[%clk 0:00:09.4]} 46. a8=Q+
{[%clk 0:02:33.1]} 46... Rxa8 {[%clk 0:00:09.5]} 47. Rh8+ {[%clk 0:02:34.1]}
47... Kb7 {[%clk 0:00:09.5]} 48. Rxa8 {[%clk 0:02:34.4]} 1-0

[Event "GrandPrix_29.05"]
[Site "Chess.com"]
[Date "2020.05.29"]
[Round "4"]
[White "szachuspl"]
[Black "iceboy88"]
[Result "1-0"]
[WhiteElo "2345"]
[BlackElo "2444"]
[TimeControl "600+2"]
[EndTime "10:58:17 PDT"]
[Termination "szachuspl won on time"]

1. d4 {[%clk 0:10:01.9]} 1... Nf6 {[%clk 0:09:56.5]} 2. c4 {[%clk 0:10:02.4]}
2... e6 {[%clk 0:09:51.7]} 3. Nf3 {[%clk 0:10:03.1]} 3... d5 {[%clk 0:09:47.8]}
4. Nc3 {[%clk 0:10:03.8]} 4... Bb4 {[%clk 0:09:46.5]} 5. Qa4+ {[%clk 0:10:03.7]}
5... Nc6 {[%clk 0:09:47.4]} 6. e3 {[%clk 0:10:05.1]} 6... O-O {[%clk 0:09:33.4]}
7. Qc2 {[%clk 0:10:05.3]} 7... b6 {[%clk 0:09:19.2]} 8. Bd2 {[%clk 0:09:47.2]}
8... Bxc3 {[%clk 0:07:39.2]} 9. Bxc3 {[%clk 0:09:42.1]} 9... Ne4 {[%clk
0:07:35.2]} 10. Bd3 {[%clk 0:09:40.9]} 10... Nxc3 {[%clk 0:07:17.2]} 11. Qxc3
{[%clk 0:08:06.5]} 11... dxc4 {[%clk 0:06:42.8]} 12. Qxc4 {[%clk 0:07:52.2]}
12... Bb7 {[%clk 0:06:26.5]} 13. Rc1 {[%clk 0:07:47.6]} 13... Ne7 {[%clk
0:05:18.6]} 14. Qxc7 {[%clk 0:07:15.5]} 14... Rc8 {[%clk 0:05:14]} 15. Qxd8
{[%clk 0:07:16.4]} 15... Rfxd8 {[%clk 0:04:31.2]} 16. Rxc8 {[%clk 0:07:06.8]}
16... Rxc8 {[%clk 0:04:31.2]} 17. Kd2 {[%clk 0:07:07.3]} 17... f6 {[%clk
0:03:42.4]} 18. Rc1 {[%clk 0:07:04.6]} 18... Rxc1 {[%clk 0:03:35.7]} 19. Kxc1
{[%clk 0:07:05.3]} 19... Bxf3 {[%clk 0:03:30.9]} 20. gxf3 {[%clk 0:07:06.1]}
20... Kf7 {[%clk 0:03:30.4]} 21. Kd2 {[%clk 0:06:55.9]} 21... Nc8 {[%clk
0:03:16.6]} 22. f4 {[%clk 0:06:43.6]} 22... h6 {[%clk 0:02:59.5]} 23. Kc3 {[%clk
0:06:39.3]} 23... a5 {[%clk 0:02:24.3]} 24. f5 {[%clk 0:06:30.3]} 24... exf5
{[%clk 0:02:07.1]} 25. Bxf5 {[%clk 0:06:30.8]} 25... Nd6 {[%clk 0:02:08.1]} 26.
Bc2 {[%clk 0:06:15]} 26... g5 {[%clk 0:01:56.9]} 27. Kd3 {[%clk 0:06:09.3]}
27... h5 {[%clk 0:01:33.8]} 28. e4 {[%clk 0:06:10]} 28... Ke7 {[%clk 0:00:57]}
29. Bd1 {[%clk 0:06:03.5]} 29... h4 {[%clk 0:00:57.2]} 30. Be2 {[%clk
0:05:59.4]} 30... Nf7 {[%clk 0:00:35.8]} 31. Ke3 {[%clk 0:05:55.7]} 31... Kd6
{[%clk 0:00:32.4]} 32. f4 {[%clk 0:05:55.1]} 32... gxf4+ {[%clk 0:00:20.3]} 33.
Kxf4 {[%clk 0:05:55.9]} 33... Nd8 {[%clk 0:00:21.4]} 34. e5+ {[%clk 0:04:48.7]}
34... fxe5+ {[%clk 0:00:16.2]} 35. dxe5+ {[%clk 0:04:49.6]} 35... Ke7 {[%clk
0:00:14.5]} 36. Bg4 {[%clk 0:04:32.1]} 36... Nc6 {[%clk 0:00:13.5]} 37. Ke4
{[%clk 0:04:29.7]} 37... Nb4 {[%clk 0:00:14.5]} 38. a3 {[%clk 0:04:30.8]} 38...
Na6 {[%clk 0:00:14.3]} 39. Kd5 {[%clk 0:04:11.4]} 39... a4 {[%clk 0:00:12.1]}
40. Kc6 {[%clk 0:04:04.9]} 40... Nc5 {[%clk 0:00:13.1]} 41. Bf5 {[%clk
0:04:02.8]} 41... Nb3 {[%clk 0:00:06.6]} 42. Kxb6 {[%clk 0:03:59.6]} 42... Nd2
{[%clk 0:00:05.6]} 43. Kb5 {[%clk 0:03:52.6]} 43... Nf3 {[%clk 0:00:05.1]} 44.
Kxa4 {[%clk 0:03:48.4]} 44... Nxh2 {[%clk 0:00:04.7]} 45. b4 {[%clk 0:03:32.7]}
45... Nf3 {[%clk 0:00:05.1]} 46. e6 {[%clk 0:03:31.7]} 46... Nd4 {[%clk
0:00:05.8]} 47. Bh3 {[%clk 0:03:32.2]} 47... Nxe6 {[%clk 0:00:06.2]} 48. b5
{[%clk 0:03:32.3]} 48... Nf4 {[%clk 0:00:05.8]} 49. Bg4 {[%clk 0:03:30.8]} 49...
h3 {[%clk 0:00:06.8]} 50. Bf3 {[%clk 0:03:27.3]} 50... Kd6 {[%clk 0:00:07.2]}
51. b6 {[%clk 0:03:23.4]} 51... Nd3 {[%clk 0:00:05.4]} 52. Kb5 {[%clk
0:03:20.2]} 52... Ne5 {[%clk 0:00:06.3]} 53. Be4 {[%clk 0:03:15]} 53... Nd7
{[%clk 0:00:05.9]} 54. a4 {[%clk 0:03:14.4]} 54... Nc5 {[%clk 0:00:06.2]} 55.
Bh1 {[%clk 0:03:13.5]} 55... Nd7 {[%clk 0:00:02.2]} 56. a5 {[%clk 0:03:14.4]}
56... Ne5 {[%clk 0:00:02.1]} 57. a6 {[%clk 0:03:14.4]} 57... Nd7 {[%clk
0:00:02.7]} 58. a7 {[%clk 0:03:15]} 1-0

[Event "GrandPrix_29.05"]
[Site "Chess.com"]
[Date "2020.05.29"]
[Round "4"]
[White "Kopytkin"]
[Black "VitaliyBernadskiy"]
[Result "1/2-1/2"]
[WhiteElo "2217"]
[BlackElo "2366"]
[TimeControl "600+2"]
[EndTime "10:58:17 PDT"]
[Termination "Game drawn - insufficient material"]

1. e4 {[%clk 0:10:01.9]} 1... c5 {[%clk 0:09:59]} 2. c3 {[%clk 0:10:02.1]} 2...
Nf6 {[%clk 0:09:59]} 3. e5 {[%clk 0:10:02.4]} 3... Nd5 {[%clk 0:10:00.1]} 4. Nf3
{[%clk 0:10:01.5]} 4... Nc6 {[%clk 0:09:59.3]} 5. d4 {[%clk 0:10:00.2]} 5...
cxd4 {[%clk 0:10:00.4]} 6. cxd4 {[%clk 0:10:01.4]} 6... d6 {[%clk 0:10:01.2]} 7.
Bc4 {[%clk 0:10:02.5]} 7... dxe5 {[%clk 0:10:01]} 8. dxe5 {[%clk 0:09:53.6]}
8... Ndb4 {[%clk 0:10:01.1]} 9. Qxd8+ {[%clk 0:08:36.3]} 9... Nxd8 {[%clk
0:10:03]} 10. Na3 {[%clk 0:08:25.3]} 10... Bd7 {[%clk 0:10:00.9]} 11. O-O {[%clk
0:08:19.1]} 11... e6 {[%clk 0:09:53.2]} 12. Rd1 {[%clk 0:08:08.8]} 12... a6
{[%clk 0:09:40.8]} 13. Be3 {[%clk 0:07:27.3]} 13... Bc6 {[%clk 0:09:40.8]} 14.
Nd4 {[%clk 0:07:01.3]} 14... Bd5 {[%clk 0:09:41.1]} 15. Bxd5 {[%clk 0:05:09.9]}
15... Nxd5 {[%clk 0:09:41.6]} 16. Nc4 {[%clk 0:05:11]} 16... b5 {[%clk
0:09:06.7]} 17. Nd2 {[%clk 0:05:06.3]} 17... Rc8 {[%clk 0:08:34.3]} 18. Rac1
{[%clk 0:05:02]} 18... Rxc1 {[%clk 0:08:28.1]} 19. Rxc1 {[%clk 0:05:01.3]} 19...
Kd7 {[%clk 0:08:18.6]} 20. Ne4 {[%clk 0:05:01]} 20... Be7 {[%clk 0:08:10.5]} 21.
Bg5 {[%clk 0:03:38.4]} 21... Bxg5 {[%clk 0:08:10.2]} 22. Nxg5 {[%clk 0:03:37]}
22... h6 {[%clk 0:08:11.6]} 23. Ne4 {[%clk 0:03:37.6]} 23... Nb7 {[%clk
0:08:11.7]} 24. g3 {[%clk 0:02:54.4]} 24... Rc8 {[%clk 0:08:08.8]} 25. Rxc8
{[%clk 0:02:54.6]} 25... Kxc8 {[%clk 0:08:10.7]} 26. Kf1 {[%clk 0:02:50.6]}
26... Nb4 {[%clk 0:07:58.4]} 27. Ke2 {[%clk 0:02:09.7]} 27... Nxa2 {[%clk
0:07:59.2]} 28. h4 {[%clk 0:01:21.4]} 28... Kc7 {[%clk 0:07:52.8]} 29. h5 {[%clk
0:01:19.7]} 29... Nb4 {[%clk 0:07:53.6]} 30. g4 {[%clk 0:01:05]} 30... Nc6
{[%clk 0:07:54.1]} 31. Nxc6 {[%clk 0:01:06]} 31... Kxc6 {[%clk 0:07:54.2]} 32.
Ke3 {[%clk 0:01:00.8]} 32... Kd5 {[%clk 0:07:21.2]} 33. f4 {[%clk 0:00:58.9]}
33... Na5 {[%clk 0:06:37.7]} 34. g5 {[%clk 0:00:21.5]} 34... Nc4+ {[%clk
0:06:38.7]} 35. Kf3 {[%clk 0:00:22.4]} 35... Nxb2 {[%clk 0:06:33.9]} 36. Nf6+
{[%clk 0:00:18.4]} 36... Kc6 {[%clk 0:05:28.3]} 37. Ne8 {[%clk 0:00:19.3]} 37...
Kd7 {[%clk 0:05:17.7]} 38. Nxg7 {[%clk 0:00:19.9]} 38... Ke7 {[%clk 0:05:18.9]}
39. gxh6 {[%clk 0:00:20.8]} 39... Kf8 {[%clk 0:05:20]} 40. f5 {[%clk 0:00:11.7]}
40... exf5 {[%clk 0:05:11.6]} 41. Nxf5 {[%clk 0:00:11.1]} 41... Kg8 {[%clk
0:05:12.7]} 42. Ke4 {[%clk 0:00:08.1]} 42... a5 {[%clk 0:05:11]} 43. Kd4 {[%clk
0:00:07.6]} 43... b4 {[%clk 0:05:00.9]} 44. Ne7+ {[%clk 0:00:08.8]} 44... Kh7
{[%clk 0:04:53.4]} 45. Nc6 {[%clk 0:00:10.7]} 45... a4 {[%clk 0:04:23.7]} 46.
Nxb4 {[%clk 0:00:11.5]} 46... a3 {[%clk 0:04:24.7]} 47. e6 {[%clk 0:00:11.8]}
47... fxe6 {[%clk 0:04:24.2]} 48. Na2 {[%clk 0:00:09.6]} 48... Na4 {[%clk
0:03:35.5]} 49. Ke5 {[%clk 0:00:10.6]} 49... Nc5 {[%clk 0:03:36]} 50. Kd6 {[%clk
0:00:11.8]} 50... Kxh6 {[%clk 0:02:49.7]} 51. Kxc5 {[%clk 0:00:11.7]} 51... Kxh5
{[%clk 0:02:49.9]} 52. Kb4 {[%clk 0:00:11.7]} 52... e5 {[%clk 0:02:50.3]} 53.
Kxa3 {[%clk 0:00:12.8]} 53... e4 {[%clk 0:02:51.8]} 54. Kb3 {[%clk 0:00:14]}
54... e3 {[%clk 0:02:53.7]} 55. Kc2 {[%clk 0:00:14.8]} 55... Kg4 {[%clk
0:02:54.6]} 56. Kd1 {[%clk 0:00:15.8]} 56... Kf3 {[%clk 0:02:56.5]} 57. Ke1
{[%clk 0:00:16.9]} 57... e2 {[%clk 0:02:58.4]} 58. Nc3 {[%clk 0:00:17.9]} 58...
Ke3 {[%clk 0:03:00.3]} 59. Nxe2 {[%clk 0:00:19.2]} 1/2-1/2